[Event "*** Titled Tuesday Blitz"]
[Site "Chess.com"]
[Date "2020.05.05"]
[Round "1"]
[White "ShahMatKanal"]
[Black "VojtechPlat"]
[Result "0-1"]
[WhiteElo "2412"]
[BlackElo "2792"]
[TimeControl "180+1"]
[EndTime "10:06:48 PDT"]
[Termination "VojtechPlat won on time"]

1. d4 {[%clk 0:03:00.9]} 1... d5 {[%clk 0:02:59.7]} 2. c4 {[%clk 0:03:00.7]}
2... Nc6 {[%clk 0:02:59.9]} 3. e3 {[%clk 0:02:58.9]} 3... e5 {[%clk 0:02:59.6]}
4. cxd5 {[%clk 0:02:50.1]} 4... Qxd5 {[%clk 0:02:59.2]} 5. Nc3 {[%clk
0:02:50.5]} 5... Bb4 {[%clk 0:02:58.6]} 6. Bd2 {[%clk 0:02:50.2]} 6... Bxc3
{[%clk 0:02:58.7]} 7. bxc3 {[%clk 0:02:50.1]} 7... Nf6 {[%clk 0:02:58.4]} 8. c4
{[%clk 0:02:39.4]} 8... Qd6 {[%clk 0:02:51.3]} 9. d5 {[%clk 0:02:37.8]} 9... Ne7
{[%clk 0:02:51.1]} 10. Qa4+ {[%clk 0:02:32.3]} 10... Bd7 {[%clk 0:02:40.1]} 11.
Qb4 {[%clk 0:02:30.3]} 11... b6 {[%clk 0:02:38.4]} 12. Bd3 {[%clk 0:02:22]}
12... c5 {[%clk 0:02:36.2]} 13. Qb2 {[%clk 0:02:13.3]} 13... e4 {[%clk
0:02:28.6]} 14. Bc2 {[%clk 0:02:05.3]} 14... b5 {[%clk 0:02:11.5]} 15. cxb5
{[%clk 0:02:01.4]} 15... Nexd5 {[%clk 0:02:10.4]} 16. Ne2 {[%clk 0:01:56.2]}
16... O-O {[%clk 0:02:09.9]} 17. O-O {[%clk 0:01:44.3]} 17... Rfb8 {[%clk
0:02:09.1]} 18. a4 {[%clk 0:01:42.4]} 18... a6 {[%clk 0:02:08.8]} 19. Nc3 {[%clk
0:01:37.1]} 19... Ng4 {[%clk 0:02:01.2]} 20. g3 {[%clk 0:01:27.3]} 20... axb5
{[%clk 0:01:57.8]} 21. axb5 {[%clk 0:01:00.6]} 21... Rxa1 {[%clk 0:01:55.5]} 22.
Rxa1 {[%clk 0:01:00.6]} 22... Nxc3 {[%clk 0:01:53.9]} 23. Qxc3 {[%clk
0:00:56.3]} 23... Bxb5 {[%clk 0:01:43.8]} 24. Bxe4 {[%clk 0:00:53.7]} 24... Rd8
{[%clk 0:01:30.3]} 25. Bf3 {[%clk 0:00:41.4]} 25... Nxf2 {[%clk 0:01:17.8]} 26.
Kxf2 {[%clk 0:00:28.5]} 26... Qxd2+ {[%clk 0:01:15.7]} 27. Qxd2 {[%clk
0:00:29.1]} 27... Rxd2+ {[%clk 0:01:14.5]} 28. Ke1 {[%clk 0:00:30]} 28... Rd8
{[%clk 0:01:14.3]} 29. Ra5 {[%clk 0:00:25]} 29... Rb8 {[%clk 0:01:14.1]} 30. Be2
{[%clk 0:00:22.1]} 30... Bxe2 {[%clk 0:01:13.1]} 31. Kxe2 {[%clk 0:00:23]} 31...
Rb2+ {[%clk 0:01:05.6]} 32. Kd3 {[%clk 0:00:22.8]} 32... g6 {[%clk 0:01:05.9]}
33. h4 {[%clk 0:00:13.9]} 33... Rg2 {[%clk 0:01:05.3]} 34. Rxc5 {[%clk
0:00:14.1]} 34... h5 {[%clk 0:01:04.5]} 35. Rg5 {[%clk 0:00:10.2]} 35... Kg7
{[%clk 0:01:04.4]} 36. g4 {[%clk 0:00:02.4]} 36... Rxg4 {[%clk 0:00:59.9]} 37.
Rxg4 {[%clk 0:00:02.7]} 37... hxg4 {[%clk 0:01:00]} 38. Ke4 {[%clk 0:00:03.6]}
38... Kh6 {[%clk 0:00:56.4]} 39. Kf4 {[%clk 0:00:03.7]} 39... Kh5 {[%clk
0:00:56]} 40. Kg3 {[%clk 0:00:04.2]} 40... f5 {[%clk 0:00:56.2]} 0-1

[Event "*** Titled Tuesday Blitz"]
[Site "Chess.com"]
[Date "2020.05.05"]
[Round "1"]
[White "Guenplen"]
[Black "Superfelix"]
[Result "1-0"]
[WhiteElo "2939"]
[BlackElo "2461"]
[TimeControl "180+1"]
[EndTime "10:06:49 PDT"]
[Termination "Guenplen won by resignation"]

1. d4 {[%clk 0:03:00]} 1... Nf6 {[%clk 0:02:58.7]} 2. Bf4 {[%clk 0:02:59.8]}
2... d6 {[%clk 0:02:56.3]} 3. e3 {[%clk 0:02:57.7]} 3... b6 {[%clk 0:02:56.3]}
4. h3 {[%clk 0:02:55.1]} 4... Bb7 {[%clk 0:02:56.3]} 5. c4 {[%clk 0:02:55.2]}
5... Nbd7 {[%clk 0:02:56.1]} 6. Nf3 {[%clk 0:02:54.8]} 6... e6 {[%clk
0:02:56.1]} 7. Nc3 {[%clk 0:02:54.8]} 7... a6 {[%clk 0:02:55.6]} 8. Bd3 {[%clk
0:02:53.9]} 8... g6 {[%clk 0:02:55.4]} 9. Bh2 {[%clk 0:02:53.4]} 9... Qe7 {[%clk
0:02:54.6]} 10. e4 {[%clk 0:02:50.8]} 10... Bg7 {[%clk 0:02:51.4]} 11. O-O
{[%clk 0:02:45.7]} 11... O-O {[%clk 0:02:49.6]} 12. b4 {[%clk 0:02:35.1]} 12...
Nh5 {[%clk 0:02:43.1]} 13. Rc1 {[%clk 0:02:26.1]} 13... c5 {[%clk 0:02:37.5]}
14. bxc5 {[%clk 0:02:23.4]} 14... bxc5 {[%clk 0:02:36]} 15. d5 {[%clk
0:02:23.8]} 15... e5 {[%clk 0:02:34.5]} 16. Rb1 {[%clk 0:02:20.7]} 16... Bc8
{[%clk 0:02:33.2]} 17. Re1 {[%clk 0:02:19.2]} 17... Nf4 {[%clk 0:02:32.2]} 18.
Bf1 {[%clk 0:02:19.2]} 18... Qd8 {[%clk 0:02:12.4]} 19. Qa4 {[%clk 0:02:16.4]}
19... f5 {[%clk 0:02:03.6]} 20. Rb3 {[%clk 0:02:00.1]} 20... Nf6 {[%clk
0:01:58.5]} 21. Bxf4 {[%clk 0:01:48.1]} 21... Bd7 {[%clk 0:01:58.3]} 22. Qa3
{[%clk 0:01:45.8]} 22... exf4 {[%clk 0:01:58.1]} 23. e5 {[%clk 0:01:46]} 23...
Ne4 {[%clk 0:01:50.8]} 24. Nxe4 {[%clk 0:01:43.1]} 24... fxe4 {[%clk 0:01:49.7]}
25. Rxe4 {[%clk 0:01:44]} 25... Bf5 {[%clk 0:01:43.5]} 26. Re1 {[%clk
0:01:42.6]} 26... dxe5 {[%clk 0:01:42.4]} 27. Nxe5 {[%clk 0:01:38.3]} 27... Re8
{[%clk 0:01:35]} 28. Nc6 {[%clk 0:01:36.3]} 28... Qf6 {[%clk 0:01:29.8]} 29.
Rxe8+ {[%clk 0:01:33.9]} 29... Rxe8 {[%clk 0:01:30.7]} 30. Qxc5 {[%clk 0:01:31]}
30... h5 {[%clk 0:01:23.9]} 31. Rb7 {[%clk 0:01:09.4]} 31... Re1 {[%clk
0:01:05.5]} 32. Ne7+ {[%clk 0:01:04.2]} 32... Kh7 {[%clk 0:01:01.3]} 33. Nxf5
{[%clk 0:01:01.3]} 33... Qxf5 {[%clk 0:00:53.7]} 34. Qd4 {[%clk 0:00:51.9]}
34... Qf8 {[%clk 0:00:45.2]} 35. d6 {[%clk 0:00:49.3]} 35... Kh6 {[%clk
0:00:43.8]} 36. Qd2 {[%clk 0:00:45.4]} 36... Re6 {[%clk 0:00:31.9]} 37. c5
{[%clk 0:00:41.2]} 37... Bf6 {[%clk 0:00:28.1]} 38. Qxf4+ {[%clk 0:00:39.3]}
38... g5 {[%clk 0:00:26.1]} 39. Qf5 {[%clk 0:00:39.3]} 1-0

[Event "*** Titled Tuesday Blitz"]
[Site "Chess.com"]
[Date "2020.05.05"]
[Round "1"]
[White "petroniy_arbitr"]
[Black "IsikCan"]
[Result "0-1"]
[WhiteElo "2313"]
[BlackElo "2639"]
[TimeControl "180+1"]
[EndTime "10:06:49 PDT"]
[Termination "IsikCan won by resignation"]

1. d4 {[%clk 0:02:58.9]} 1... d5 {[%clk 0:02:59.8]} 2. c4 {[%clk 0:02:58.8]}
2... c6 {[%clk 0:03:00]} 3. Nc3 {[%clk 0:02:58.1]} 3... Nf6 {[%clk 0:03:00.4]}
4. e3 {[%clk 0:02:58.3]} 4... Bf5 {[%clk 0:03:00.6]} 5. Nf3 {[%clk 0:02:57.1]}
5... e6 {[%clk 0:03:00]} 6. Qb3 {[%clk 0:02:56.1]} 6... Qc7 {[%clk 0:02:59.2]}
7. Be2 {[%clk 0:02:55.3]} 7... h6 {[%clk 0:02:57.1]} 8. O-O {[%clk 0:02:55]}
8... Nbd7 {[%clk 0:02:49]} 9. Bd2 {[%clk 0:02:54.4]} 9... Be7 {[%clk 0:02:45.7]}
10. Rac1 {[%clk 0:02:52.5]} 10... Rc8 {[%clk 0:02:41.4]} 11. a3 {[%clk
0:02:41.6]} 11... O-O {[%clk 0:02:39.3]} 12. Qa2 {[%clk 0:02:24.7]} 12... Qb8
{[%clk 0:02:26.8]} 13. b4 {[%clk 0:02:22.2]} 13... Ne4 {[%clk 0:02:25.8]} 14.
Nxe4 {[%clk 0:02:11.8]} 14... Bxe4 {[%clk 0:02:26.7]} 15. cxd5 {[%clk
0:01:49.5]} 15... cxd5 {[%clk 0:02:15.6]} 16. Qb2 {[%clk 0:01:26.3]} 16... Bd6
{[%clk 0:02:09.1]} 17. Rxc8 {[%clk 0:01:23.4]} 17... Rxc8 {[%clk 0:02:07]} 18.
Rc1 {[%clk 0:01:11.8]} 18... Rxc1+ {[%clk 0:02:05.7]} 19. Qxc1 {[%clk
0:01:10.9]} 19... Bxf3 {[%clk 0:02:06]} 20. Bxf3 {[%clk 0:01:08.4]} 20... Bxh2+
{[%clk 0:02:05.5]} 21. Kf1 {[%clk 0:01:07.9]} 21... Bd6 {[%clk 0:02:06.4]} 22.
b5 {[%clk 0:01:06.5]} 22... Qd8 {[%clk 0:02:02.3]} 23. a4 {[%clk 0:01:04.8]}
23... Nf6 {[%clk 0:01:29.7]} 24. Qc2 {[%clk 0:01:00.4]} 24... Bc7 {[%clk
0:01:25.9]} 25. Ke2 {[%clk 0:00:54.4]} 25... h5 {[%clk 0:01:13.1]} 26. g3 {[%clk
0:00:52.5]} 26... g6 {[%clk 0:01:11.9]} 27. Qc5 {[%clk 0:00:48.1]} 27... Bb6
{[%clk 0:01:06.5]} 28. Qc2 {[%clk 0:00:47.8]} 28... Kg7 {[%clk 0:01:06.7]} 29.
Bb4 {[%clk 0:00:46.8]} 29... Ba5 {[%clk 0:01:05.3]} 30. Bc5 {[%clk 0:00:46]}
30... Bb6 {[%clk 0:01:05.4]} 31. Bb4 {[%clk 0:00:45.9]} 31... Bc7 {[%clk
0:01:02.3]} 32. Qc3 {[%clk 0:00:43.2]} 32... Bd6 {[%clk 0:01:01.5]} 33. Bc5
{[%clk 0:00:41.5]} 33... b6 {[%clk 0:01:00.3]} 34. Bxd6 {[%clk 0:00:37.3]} 34...
Qxd6 {[%clk 0:01:01.2]} 35. Qc8 {[%clk 0:00:37.5]} 35... Qa3 {[%clk 0:01:00.3]}
36. Qa6 {[%clk 0:00:35.4]} 36... Qb2+ {[%clk 0:00:54.7]} 37. Kf1 {[%clk
0:00:35.5]} 37... Qc1+ {[%clk 0:00:53.4]} 38. Kg2 {[%clk 0:00:35.3]} 38... Qc7
{[%clk 0:00:54.3]} 39. Kf1 {[%clk 0:00:29.9]} 39... Nd7 {[%clk 0:00:54.2]} 40.
a5 {[%clk 0:00:27.2]} 40... Nb8 {[%clk 0:00:50.5]} 41. axb6 {[%clk 0:00:27.1]}
41... Qc1+ {[%clk 0:00:48.9]} 42. Kg2 {[%clk 0:00:24.3]} 42... Nxa6 {[%clk
0:00:49.8]} 43. bxa7 {[%clk 0:00:23.6]} 43... Qc8 {[%clk 0:00:45.6]} 0-1

[Event "*** Titled Tuesday Blitz"]
[Site "Chess.com"]
[Date "2020.05.05"]
[Round "1"]
[White "chenxiaoyuer"]
[Black "ClassyEl"]
[Result "1/2-1/2"]
[WhiteElo "2226"]
[BlackElo "2552"]
[TimeControl "180+1"]
[EndTime "10:06:52 PDT"]
[Termination "Game drawn by repetition"]

1. e4 {[%clk 0:03:00.9]} 1... d6 {[%clk 0:02:59.9]} 2. d4 {[%clk 0:02:58.4]}
2... Nf6 {[%clk 0:02:59.6]} 3. Nc3 {[%clk 0:02:57.6]} 3... c6 {[%clk 0:02:59.9]}
4. Nf3 {[%clk 0:02:57.2]} 4... Bg4 {[%clk 0:02:59.5]} 5. a4 {[%clk 0:02:55.8]}
5... e6 {[%clk 0:02:59.4]} 6. h3 {[%clk 0:02:54]} 6... Bh5 {[%clk 0:02:59.1]} 7.
Be3 {[%clk 0:02:52.8]} 7... d5 {[%clk 0:02:58.8]} 8. e5 {[%clk 0:02:50.4]} 8...
Nfd7 {[%clk 0:02:58.5]} 9. g4 {[%clk 0:02:29]} 9... Bg6 {[%clk 0:02:58.1]} 10.
Qd2 {[%clk 0:02:24.6]} 10... a6 {[%clk 0:02:57.4]} 11. Ne2 {[%clk 0:02:15.4]}
11... c5 {[%clk 0:02:57.5]} 12. dxc5 {[%clk 0:02:05.2]} 12... Bxc5 {[%clk
0:02:52.2]} 13. Bxc5 {[%clk 0:02:02.7]} 13... Nxc5 {[%clk 0:02:52.5]} 14. Nfd4
{[%clk 0:01:59.9]} 14... Nc6 {[%clk 0:02:46.5]} 15. Nxc6 {[%clk 0:01:44]} 15...
bxc6 {[%clk 0:02:46.5]} 16. f3 {[%clk 0:01:43.9]} 16... a5 {[%clk 0:02:42.1]}
17. Nd4 {[%clk 0:01:34.9]} 17... Qb6 {[%clk 0:02:35.9]} 18. b3 {[%clk
0:01:30.8]} 18... Nd7 {[%clk 0:02:29.4]} 19. f4 {[%clk 0:01:25.1]} 19... Be4
{[%clk 0:02:27.7]} 20. Rg1 {[%clk 0:01:21.8]} 20... g5 {[%clk 0:02:22.5]} 21.
O-O-O {[%clk 0:00:56.6]} 21... gxf4 {[%clk 0:02:00.7]} 22. Qxf4 {[%clk
0:00:54.8]} 22... Qc7 {[%clk 0:01:58.4]} 23. Bg2 {[%clk 0:00:20.3]} 23... Bxg2
{[%clk 0:01:38.1]} 24. Rxg2 {[%clk 0:00:20.4]} 24... Qxe5 {[%clk 0:01:30.1]} 25.
Qxe5 {[%clk 0:00:19.3]} 25... Nxe5 {[%clk 0:01:30.5]} 26. Re2 {[%clk 0:00:15.9]}
26... Ng6 {[%clk 0:01:30.5]} 27. Nxc6 {[%clk 0:00:15.3]} 27... Nf4 {[%clk
0:01:30.3]} 28. Re3 {[%clk 0:00:15]} 28... h5 {[%clk 0:01:29.9]} 29. g5 {[%clk
0:00:13.9]} 29... h4 {[%clk 0:01:29.8]} 30. Ne5 {[%clk 0:00:12.1]} 30... Rg8
{[%clk 0:01:27]} 31. Rf1 {[%clk 0:00:10.9]} 31... Ng6 {[%clk 0:01:24.7]} 32.
Nxf7 {[%clk 0:00:09.7]} 32... Kd7 {[%clk 0:01:17.3]} 33. Rf6 {[%clk 0:00:09.6]}
33... Raf8 {[%clk 0:01:12.9]} 34. Rxg6 {[%clk 0:00:09.6]} 34... Rxg6 {[%clk
0:01:12.7]} 35. Ne5+ {[%clk 0:00:09.7]} 35... Kd6 {[%clk 0:01:11.9]} 36. Nxg6
{[%clk 0:00:10.6]} 36... Rf5 {[%clk 0:01:10.9]} 37. Nh8 {[%clk 0:00:08.9]} 37...
d4 {[%clk 0:01:10.2]} 38. Rd3 {[%clk 0:00:08.7]} 38... Kd5 {[%clk 0:01:09]} 39.
g6 {[%clk 0:00:08.3]} 39... Rg5 {[%clk 0:01:09.3]} 40. Rf3 {[%clk 0:00:08.2]}
40... e5 {[%clk 0:01:08.2]} 41. Rf7 {[%clk 0:00:08]} 41... e4 {[%clk 0:01:07.9]}
42. g7 {[%clk 0:00:07]} 42... e3 {[%clk 0:01:08]} 43. Kd1 {[%clk 0:00:07.2]}
43... Rg1+ {[%clk 0:01:05.8]} 44. Ke2 {[%clk 0:00:07.2]} 44... Rg2+ {[%clk
0:01:06.2]} 45. Kf1 {[%clk 0:00:05.6]} 45... Rg3 {[%clk 0:01:04.3]} 46. Ke2
{[%clk 0:00:02.6]} 46... Rg2+ {[%clk 0:01:03.9]} 47. Kf1 {[%clk 0:00:02.7]}
47... Rg3 {[%clk 0:01:04.3]} 48. Ke2 {[%clk 0:00:03.1]} 48... Ke4 {[%clk
0:01:04.6]} 49. Re7+ {[%clk 0:00:02.9]} 49... Kd5 {[%clk 0:01:04.6]} 50. Rf7
{[%clk 0:00:02.8]} 1/2-1/2

[Event "*** Titled Tuesday Blitz"]
[Site "Chess.com"]
[Date "2020.05.05"]
[Round "1"]
[White "Happy1712Drummer"]
[Black "kinga2008"]
[Result "1-0"]
[WhiteElo "2503"]
[BlackElo "2097"]
[TimeControl "180+1"]
[EndTime "10:06:52 PDT"]
[Termination "Happy1712Drummer won on time"]

1. d4 {[%clk 0:02:58.2]} 1... g6 {[%clk 0:02:57.9]} 2. c4 {[%clk 0:02:57.5]}
2... Bg7 {[%clk 0:02:52.8]} 3. Nc3 {[%clk 0:02:58.4]} 3... d6 {[%clk 0:02:51.3]}
4. Nf3 {[%clk 0:02:55.6]} 4... c5 {[%clk 0:02:46.2]} 5. dxc5 {[%clk 0:02:51.2]}
5... dxc5 {[%clk 0:02:43.1]} 6. Qxd8+ {[%clk 0:02:49.7]} 6... Kxd8 {[%clk
0:02:42.3]} 7. Bf4 {[%clk 0:02:50.2]} 7... Nc6 {[%clk 0:02:39.9]} 8. O-O-O+
{[%clk 0:02:48.5]} 8... Bd7 {[%clk 0:02:27.3]} 9. Ne4 {[%clk 0:02:48.3]} 9... b6
{[%clk 0:02:18.3]} 10. g3 {[%clk 0:02:10.8]} 10... Kc8 {[%clk 0:02:17.2]} 11.
Bg2 {[%clk 0:02:09.6]} 11... Nf6 {[%clk 0:02:09.2]} 12. Ne5 {[%clk 0:01:55.6]}
12... Nxe5 {[%clk 0:01:31.5]} 13. Nxf6 {[%clk 0:01:44.2]} 13... Bc6 {[%clk
0:01:21.3]} 14. Bxc6 {[%clk 0:00:44.3]} 14... Nxc6 {[%clk 0:01:13.1]} 15. Rd7
{[%clk 0:00:25.4]} 15... Bxf6 {[%clk 0:00:14.3]} 16. Rc7+ {[%clk 0:00:24.7]}
16... Kd8 {[%clk 0:00:12.4]} 17. Rxc6 {[%clk 0:00:25.6]} 17... Kd7 {[%clk
0:00:11.1]} 18. Rc7+ {[%clk 0:00:24.8]} 18... Ke6 {[%clk 0:00:10.2]} 19. Rd1
{[%clk 0:00:25.2]} 19... Rad8 {[%clk 0:00:08.7]} 20. Rxd8 {[%clk 0:00:23.9]}
20... Rxd8 {[%clk 0:00:05.8]} 21. Rxa7 {[%clk 0:00:24.8]} 21... Rd4 {[%clk
0:00:05.4]} 22. b3 {[%clk 0:00:23.8]} 22... Re4 {[%clk 0:00:04.9]} 23. Be3
{[%clk 0:00:20.5]} 23... Bd4 {[%clk 0:00:03.8]} 24. Kd2 {[%clk 0:00:20.1]} 24...
Bxe3+ {[%clk 0:00:03.6]} 25. fxe3 {[%clk 0:00:20.7]} 25... Re5 {[%clk
0:00:03.6]} 26. Ra6 {[%clk 0:00:19.9]} 26... Kf5 {[%clk 0:00:02.5]} 27. Rxb6
{[%clk 0:00:20]} 1-0

[Event "*** Titled Tuesday Blitz"]
[Site "Chess.com"]
[Date "2020.05.05"]
[Round "1"]
[White "rynos0411"]
[Black "bancsoo"]
[Result "0-1"]
[WhiteElo "2382"]
[BlackElo "2732"]
[TimeControl "180+1"]
[EndTime "10:06:55 PDT"]
[Termination "bancsoo won by resignation"]

1. e4 {[%clk 0:03:00.9]} 1... d5 {[%clk 0:02:59]} 2. exd5 {[%clk 0:03:00.1]}
2... Qxd5 {[%clk 0:02:58.6]} 3. Nc3 {[%clk 0:02:59.8]} 3... Qd6 {[%clk
0:02:59.3]} 4. d4 {[%clk 0:02:53.6]} 4... Nf6 {[%clk 0:02:59.3]} 5. Nf3 {[%clk
0:02:53.4]} 5... c6 {[%clk 0:02:59.3]} 6. Be3 {[%clk 0:02:50]} 6... Bg4 {[%clk
0:02:56.2]} 7. Be2 {[%clk 0:02:47.6]} 7... e6 {[%clk 0:02:56]} 8. Ne5 {[%clk
0:02:47.1]} 8... Bxe2 {[%clk 0:02:54.9]} 9. Qxe2 {[%clk 0:02:46.7]} 9... Nbd7
{[%clk 0:02:53.2]} 10. Bf4 {[%clk 0:02:43.3]} 10... Qxd4 {[%clk 0:02:48.1]} 11.
Nd3 {[%clk 0:02:32.5]} 11... Nc5 {[%clk 0:02:35]} 12. Be5 {[%clk 0:02:21.9]}
12... Nxd3+ {[%clk 0:02:32.4]} 13. cxd3 {[%clk 0:02:22]} 13... Qd7 {[%clk
0:02:30.6]} 14. Bxf6 {[%clk 0:02:14.2]} 14... gxf6 {[%clk 0:02:30.6]} 15. O-O-O
{[%clk 0:02:07.4]} 15... O-O-O {[%clk 0:02:28.7]} 16. Qe3 {[%clk 0:02:03.6]}
16... Qd4 {[%clk 0:02:24.4]} 17. Qf3 {[%clk 0:02:00.2]} 17... f5 {[%clk
0:02:23.6]} 18. Kb1 {[%clk 0:01:58.5]} 18... Bg7 {[%clk 0:02:18.4]} 19. h3
{[%clk 0:01:56.8]} 19... Rd7 {[%clk 0:02:01.2]} 20. g4 {[%clk 0:01:53.8]} 20...
fxg4 {[%clk 0:01:52.1]} 21. hxg4 {[%clk 0:01:53.4]} 21... h6 {[%clk 0:01:52.5]}
22. Rhe1 {[%clk 0:01:51.2]} 22... Rhd8 {[%clk 0:01:51.8]} 23. Re4 {[%clk
0:01:50.5]} 23... Qb6 {[%clk 0:01:50.8]} 24. Rc4 {[%clk 0:01:46.6]} 24... Bd4
{[%clk 0:01:46.6]} 25. Rc1 {[%clk 0:01:34.2]} 25... Kb8 {[%clk 0:01:42.7]} 26.
Qf4+ {[%clk 0:01:25.2]} 26... Ka8 {[%clk 0:01:42.7]} 27. Na4 {[%clk 0:01:20]}
27... Qb5 {[%clk 0:01:38.5]} 28. a3 {[%clk 0:01:13.6]} 28... Qg5 {[%clk
0:01:20.3]} 29. Qf3 {[%clk 0:01:01.9]} 29... Qf6 {[%clk 0:01:15.9]} 30. Qe4
{[%clk 0:00:23.2]} 30... Rd5 {[%clk 0:01:14]} 31. f4 {[%clk 0:00:19.3]} 31...
Qe7 {[%clk 0:00:59.9]} 32. Nc3 {[%clk 0:00:13.9]} 32... Bxc3 {[%clk 0:00:58.5]}
33. R1xc3 {[%clk 0:00:14.1]} 33... Qd6 {[%clk 0:00:57]} 34. g5 {[%clk
0:00:10.4]} 34... hxg5 {[%clk 0:00:55.9]} 35. fxg5 {[%clk 0:00:11.3]} 35... Rxg5
{[%clk 0:00:54.2]} 36. Ka2 {[%clk 0:00:07.7]} 36... Rd5 {[%clk 0:00:53.5]} 37.
Qf3 {[%clk 0:00:06.1]} 37... f5 {[%clk 0:00:52.8]} 38. Ra4 {[%clk 0:00:04.2]}
38... Rxd3 {[%clk 0:00:50]} 39. Qf2 {[%clk 0:00:02.9]} 39... Qd5+ {[%clk
0:00:44.6]} 40. b3 {[%clk 0:00:01.4]} 40... Rd2+ {[%clk 0:00:44.3]} 0-1

[Event "*** Titled Tuesday Blitz"]
[Site "Chess.com"]
[Date "2020.05.05"]
[Round "1"]
[White "DamianoLew95"]
[Black "Funkmaus"]
[Result "1-0"]
[WhiteElo "2557"]
[BlackElo "2213"]
[TimeControl "180+1"]
[EndTime "10:06:55 PDT"]
[Termination "DamianoLew95 won by resignation"]

1. d4 {[%clk 0:02:54.2]} 1... d5 {[%clk 0:02:57]} 2. Nf3 {[%clk 0:02:53.2]} 2...
Nf6 {[%clk 0:02:56.5]} 3. Bf4 {[%clk 0:02:52.9]} 3... Bf5 {[%clk 0:02:55.1]} 4.
e3 {[%clk 0:02:52.2]} 4... e6 {[%clk 0:02:54.1]} 5. c4 {[%clk 0:02:52.1]} 5...
c6 {[%clk 0:02:54.2]} 6. Nc3 {[%clk 0:02:51.9]} 6... Nbd7 {[%clk 0:02:49.4]} 7.
Qb3 {[%clk 0:02:48.4]} 7... Qb6 {[%clk 0:02:44.5]} 8. c5 {[%clk 0:02:47.3]} 8...
Qxb3 {[%clk 0:02:44.7]} 9. axb3 {[%clk 0:02:48.2]} 9... a6 {[%clk 0:02:35.3]}
10. b4 {[%clk 0:02:47.9]} 10... Rc8 {[%clk 0:02:13.8]} 11. h3 {[%clk 0:02:46.5]}
11... h6 {[%clk 0:02:13.6]} 12. Nd2 {[%clk 0:02:45.4]} 12... Be7 {[%clk
0:02:12.1]} 13. Nb3 {[%clk 0:02:44.8]} 13... Bd8 {[%clk 0:02:09.5]} 14. Bd6
{[%clk 0:02:41.7]} 14... Ne4 {[%clk 0:02:07.6]} 15. Nxe4 {[%clk 0:02:33.1]}
15... Bxe4 {[%clk 0:02:08.5]} 16. Kd2 {[%clk 0:02:29.8]} 16... Nf6 {[%clk
0:02:06.1]} 17. f3 {[%clk 0:02:26.1]} 17... Bg6 {[%clk 0:01:59.2]} 18. Bd3
{[%clk 0:02:25.9]} 18... Bxd3 {[%clk 0:01:56.3]} 19. Kxd3 {[%clk 0:02:25.8]}
19... Kd7 {[%clk 0:01:56.9]} 20. g4 {[%clk 0:02:18.9]} 20... Ne8 {[%clk
0:01:56.6]} 21. Bg3 {[%clk 0:02:14.4]} 21... g6 {[%clk 0:01:42]} 22. e4 {[%clk
0:02:08.9]} 22... Ng7 {[%clk 0:01:35.3]} 23. h4 {[%clk 0:01:59.8]} 23... h5
{[%clk 0:01:31.9]} 24. g5 {[%clk 0:01:59.8]} 24... Rg8 {[%clk 0:01:21.1]} 25.
Rhe1 {[%clk 0:01:52]} 25... Bc7 {[%clk 0:01:15.2]} 26. Bf2 {[%clk 0:01:35.9]}
26... Rcd8 {[%clk 0:01:12.4]} 27. Na5 {[%clk 0:01:35]} 27... Kc8 {[%clk
0:01:05.3]} 28. Kc3 {[%clk 0:01:30.1]} 28... Rd7 {[%clk 0:00:58.8]} 29. b5
{[%clk 0:01:20.3]} 29... axb5 {[%clk 0:00:48.6]} 30. Nb3 {[%clk 0:01:08.9]}
30... Bb8 {[%clk 0:00:30.1]} 31. Ra8 {[%clk 0:01:03.3]} 31... Re8 {[%clk
0:00:24.6]} 32. Bg3 {[%clk 0:00:59.9]} 32... Rc7 {[%clk 0:00:15.8]} 33. Bd6
{[%clk 0:00:54]} 33... Rd8 {[%clk 0:00:14.1]} 34. Be5 {[%clk 0:00:37.4]} 34...
Ne8 {[%clk 0:00:12.2]} 35. Rea1 {[%clk 0:00:35.6]} 1-0

[Event "*** Titled Tuesday Blitz"]
[Site "Chess.com"]
[Date "2020.05.05"]
[Round "1"]
[White "hermionegrangermagic"]
[Black "CastleOasisChess"]
[Result "0-1"]
[WhiteElo "2491"]
[BlackElo "2136"]
[TimeControl "180+1"]
[EndTime "10:06:56 PDT"]
[Termination "CastleOasisChess won by resignation"]

1. e4 {[%clk 0:02:56.9]} 1... e6 {[%clk 0:03:00.4]} 2. d4 {[%clk 0:02:56.6]}
2... d5 {[%clk 0:03:01.3]} 3. Nc3 {[%clk 0:02:56]} 3... c6 {[%clk 0:02:59.9]} 4.
a3 {[%clk 0:02:49.4]} 4... f5 {[%clk 0:02:59.8]} 5. exf5 {[%clk 0:02:47.8]} 5...
exf5 {[%clk 0:02:59.7]} 6. Nf3 {[%clk 0:02:48.4]} 6... Bd6 {[%clk 0:02:58.4]} 7.
Bd3 {[%clk 0:02:43.6]} 7... Nf6 {[%clk 0:02:57.8]} 8. O-O {[%clk 0:02:43.2]}
8... O-O {[%clk 0:02:57.1]} 9. Re1 {[%clk 0:02:43.1]} 9... Qc7 {[%clk
0:02:53.2]} 10. Ne5 {[%clk 0:02:42.6]} 10... g6 {[%clk 0:02:35.2]} 11. Bf4
{[%clk 0:02:22.5]} 11... Nbd7 {[%clk 0:02:31.4]} 12. Nxd7 {[%clk 0:02:18]} 12...
Bxd7 {[%clk 0:02:32.3]} 13. Bxd6 {[%clk 0:02:16.6]} 13... Qxd6 {[%clk
0:02:31.9]} 14. h3 {[%clk 0:02:15.4]} 14... Rae8 {[%clk 0:02:29.6]} 15. Qf3
{[%clk 0:02:11.1]} 15... Ne4 {[%clk 0:02:26.3]} 16. Bxe4 {[%clk 0:01:52.5]}
16... fxe4 {[%clk 0:02:27.2]} 17. Qg3 {[%clk 0:01:52]} 17... Qxg3 {[%clk
0:02:22.6]} 18. fxg3 {[%clk 0:01:52.9]} 18... Rf7 {[%clk 0:02:14.7]} 19. Rf1
{[%clk 0:01:45.2]} 19... Ref8 {[%clk 0:02:14.2]} 20. Rxf7 {[%clk 0:01:44.7]}
20... Rxf7 {[%clk 0:02:13.8]} 21. Rf1 {[%clk 0:01:45.3]} 21... Rxf1+ {[%clk
0:02:13.9]} 22. Kxf1 {[%clk 0:01:45.2]} 22... Kg7 {[%clk 0:02:08.8]} 23. Kf2
{[%clk 0:01:44.4]} 23... h5 {[%clk 0:01:54.6]} 24. Na4 {[%clk 0:01:34.9]} 24...
b6 {[%clk 0:01:47.4]} 25. Ke3 {[%clk 0:01:34.4]} 25... Kf6 {[%clk 0:01:44.7]}
26. c4 {[%clk 0:01:29.7]} 26... dxc4 {[%clk 0:01:39.7]} 27. Kxe4 {[%clk
0:01:28.9]} 27... Bf5+ {[%clk 0:01:37.3]} 28. Ke3 {[%clk 0:01:25.4]} 28... Be6
{[%clk 0:01:35.4]} 29. Nc3 {[%clk 0:01:24.6]} 29... Bd5 {[%clk 0:01:30]} 30.
Ne4+ {[%clk 0:00:55.9]} 30... Bxe4 {[%clk 0:01:26.8]} 31. Kxe4 {[%clk
0:00:55.8]} 31... Ke6 {[%clk 0:01:26.1]} 32. Kf4 {[%clk 0:00:52]} 32... b5
{[%clk 0:01:20.1]} 33. g4 {[%clk 0:00:39.4]} 33... hxg4 {[%clk 0:01:16.1]} 34.
Kxg4 {[%clk 0:00:39.3]} 34... a5 {[%clk 0:01:15.4]} 35. Kf4 {[%clk 0:00:36.4]}
35... b4 {[%clk 0:01:15.5]} 36. axb4 {[%clk 0:00:25.8]} 36... axb4 {[%clk
0:01:16.4]} 37. Ke4 {[%clk 0:00:22.8]} 37... Kf6 {[%clk 0:01:06.8]} 38. h4
{[%clk 0:00:18.4]} 38... b3 {[%clk 0:00:53.5]} 39. d5 {[%clk 0:00:09.3]} 39...
cxd5+ {[%clk 0:00:53.2]} 40. Kd4 {[%clk 0:00:09.4]} 40... Kf5 {[%clk 0:00:50.5]}
41. g3 {[%clk 0:00:09.3]} 41... Kg4 {[%clk 0:00:50.6]} 42. Kxd5 {[%clk
0:00:04.8]} 42... c3 {[%clk 0:00:49.8]} 43. bxc3 {[%clk 0:00:04.8]} 43... b2
{[%clk 0:00:50.1]} 44. c4 {[%clk 0:00:05.7]} 44... b1=Q {[%clk 0:00:50.7]} 45.
c5 {[%clk 0:00:06.6]} 45... Qf5+ {[%clk 0:00:47.9]} 46. Kd6 {[%clk 0:00:06.6]}
46... Qc8 {[%clk 0:00:47.9]} 47. c6 {[%clk 0:00:07.5]} 47... Kxg3 {[%clk
0:00:47.9]} 48. c7 {[%clk 0:00:08.1]} 48... Kg4 {[%clk 0:00:48.3]} 0-1